fUST/lending_fUST_20240329
["ID","MTS","AMOUNT","RATE_DAILY","PERIOD"]
[320870048,1711654238650,-500.0,0.00054794,14]
[320870049,1711654238660,-500.0,0.00054794,120]
[320870050,1711654238672,-500.0,0.00054794,120]
[320870051,1711654238685,-500.0,0.00054794,120]
[320870052,1711654238697,-500.0,0.00054794,120]
[320870053,1711654238708,-500.0,0.00054794,120]
[320870054,1711654238722,-500.0,0.00054794,120]
[320870055,1711654238734,-500.0,0.00054794,120]
[320870056,1711654238746,-500.0,0.00054794,120]
[320870057,1711654238757,-305.6973971,0.00054794,120]
[320870058,1711654238770,-500.0,0.00054794,120]
[320870059,1711654238782,-500.0,0.00054794,120]
[320870060,1711654238794,-299.55910038,0.00054794,120]
[320870061,1711654238806,-500.0,0.00054794,120]
[320870062,1711654238817,-500.95638156,0.00054794,120]
[320870063,1711654238828,-500.0,0.00054794,120]
[320870064,1711654238839,-156.02333038,0.00054794,120]
[320870065,1711654238850,-500.0,0.00054794,120]
[320870066,1711654238861,-500.0,0.00054794,120]
[320870067,1711654238872,-500.0,0.00054794,120]
[320870068,1711654238883,-500.0,0.00054794,120]
[320870069,1711654238894,-500.0,0.00054794,120]
[320870070,1711654239035,-225.16,0.00054794,120]
[320870071,1711654239044,-500.0,0.00054794,120]
[320870072,1711654239052,-500.0,0.00054794,120]
[320870073,1711654239062,-500.0,0.00054794,120]
[320870074,1711654239070,-500.0,0.00054794,120]
[320870075,1711654239080,-451.3274442,0.00054794,120]
[320870076,1711654239089,-500.0,0.00054794,120]
[320870077,1711654239098,-617.34446989,0.00054794,120]
[320870078,1711654239107,-500.0,0.00054794,120]
[320870079,1711654239116,-500.0,0.00054794,120]
[320870080,1711654239125,-503.11948425,0.00054794,120]
[320870081,1711654239134,-500.0,0.00054794,120]
[320870082,1711654239143,-500.0,0.00054794,120]
[320870083,1711654239152,-256.09941801,0.00054794,120]
[320870084,1711654239161,-500.0,0.00054794,120]
[320870085,1711654239169,-500.0,0.00054794,120]
[320870086,1711654239178,-511.03,0.00054794,120]
[320870087,1711654239187,-500.0,0.00054794,120]
[320870088,1711654239196,-500.0,0.00054794,120]
[320870089,1711654239205,-500.0,0.00054794,120]
[320870090,1711654239214,-500.0,0.00054794,120]
[320870091,1711654239223,-500.0,0.00054794,120]
[320870092,1711654239232,-500.0,0.00054794,120]
[320870093,1711654239240,-618.63767168,0.00054794,120]
[320870094,1711654239250,-630.34,0.00054794,120]
[320870095,1711654239259,-500.0,0.00054794,120]
[320870096,1711654239268,-500.0,0.00054794,120]
[320870097,1711654239277,-393.69097986,0.00054794,120]
[320870098,1711654239287,-500.0,0.00054794,120]
[320870099,1711654239296,-500.0,0.00054794,120]
[320870100,1711654239306,-500.0,0.00054794,120]
[320870101,1711654239315,-500.0,0.00054794,120]
[320870102,1711654239325,-501.30394244,0.00054794,120]
[320870103,1711654239334,-500.0,0.00054794,120]
[320870104,1711654239344,-500.0,0.00054794,120]
[320870105,1711654239354,-500.0,0.00054794,120]
[320870106,1711654239365,-500.0,0.00054794,120]
[320870107,1711654239374,-500.0,0.00054794,120]
[320870108,1711654239384,-500.0,0.00054794,120]
[320870109,1711654239394,-611.08890482,0.00054794,120]
[320870110,1711654239405,-500.0,0.00054794,120]
[320870111,1711654239417,-500.0,0.00054794,7]
[320870112,1711654239427,-500.0,0.00054794,120]
[320870113,1711654239436,-500.0,0.00054794,120]
[320870114,1711654239447,-500.0,0.00054794,120]
[320870115,1711654239456,-500.0,0.00054794,120]
[320870116,1711654239466,-521.85,0.00054794,120]
[320870117,1711654239476,-153.62343981,0.00054794,120]
[320870118,1711654239486,-500.0,0.00054794,120]
[320870119,1711654239495,-500.0,0.00054794,120]
[320870120,1711654239504,-500.0,0.00054794,120]
[320870121,1711654239514,-500.0,0.00054794,120]
[320870122,1711654239523,-500.0,0.00054794,120]
[320870123,1711654239533,-356.44,0.00054794,120]
[320870124,1711654239543,-500.0,0.00054794,120]
[320870125,1711654239552,-500.0,0.00054794,120]
[320870126,1711654239561,-500.0,0.00054794,120]
[320870127,1711654239570,-500.0,0.00054794,120]
[320870128,1711654239580,-500.0,0.00054794,120]
[320870129,1711654239590,-500.0,0.00054794,120]
[320870130,1711654239599,-500.0,0.00054794,120]
[320870132,1711654239609,-295.21589541,0.00054794,120]
[320870133,1711654239617,-500.0,0.00054794,120]
[320870134,1711654239627,-500.0,0.00054794,120]
[320870135,1711654239636,-500.0,0.00054794,120]
[320870136,1711654239646,-500.0,0.00054794,120]
[320870137,1711654239655,-500.0,0.00054794,120]
[320870138,1711654239664,-500.0,0.00054794,120]
[320870139,1711654239673,-500.0,0.00054794,120]
[320870140,1711654239685,-500.0,0.00054794,120]
[320870141,1711654239695,-500.0,0.00054794,120]
[320870142,1711654239705,-500.0,0.00054794,120]
[320870143,1711654239714,-500.0,0.00054794,120]
[320870144,1711654239722,-500.0,0.00054794,120]
[320870146,1711654239732,-500.0,0.00054794,120]
[320870148,1711654239742,-500.0,0.00054794,120]
[320870150,1711654239751,-500.0,0.00054794,120]
[320870152,1711654239761,-500.0,0.00054794,120]
[320870154,1711654239771,-151.10203639,0.00054794,120]
[320870156,1711654239780,-500.0,0.00054794,120]
[320870158,1711654239791,-500.0,0.00054794,120]
[320870160,1711654239801,-500.0,0.00054794,120]
[320870162,1711654239810,-500.0,0.00054794,120]
[320870164,1711654239820,-455.88,0.00054794,120]
[320870166,1711654239829,-500.0,0.00054794,120]
[320870168,1711654239838,-500.0,0.00054794,120]
[320870170,1711654239847,-500.0,0.00054794,120]
[320870172,1711654239855,-369.85357767,0.00054794,120]
[320870173,1711654239865,-500.0,0.00054794,120]
[320870175,1711654239874,-500.0,0.00054794,120]
[320870177,1711654239883,-500.0,0.00054794,120]
[320870179,1711654239893,-429.78623209,0.00054794,120]
[320870181,1711654239902,-500.0,0.00054794,120]
[320870183,1711654239911,-500.0,0.00054794,120]
[320870184,1711654239920,-500.0,0.00054794,120]
[320870185,1711654239930,-500.0,0.00054794,120]
[320870186,1711654239939,-500.0,0.00054794,120]
[320870187,1711654239948,-500.0,0.00054794,120]
[320870188,1711654239958,-500.0,0.00054794,120]
[320870189,1711654239969,-602.13,0.00054794,120]
[320870190,1711654239979,-602.13,0.00054794,120]
[320870191,1711654239989,-602.13,0.00054794,120]
[320870192,1711654239998,-602.13,0.00054794,120]
[320870193,1711654240007,-602.13,0.00054794,120]
[320870194,1711654240016,-500.0,0.00054794,120]
[320870195,1711654240025,-500.0,0.00054794,120]
[320870196,1711654240035,-504.98808329,0.00054794,120]
[320870198,1711654240045,-548.58,0.00054794,90]
[320870199,1711654240053,-548.58,0.00054794,90]
[320870201,1711654240063,-548.58,0.00054794,90]
[320870203,1711654240072,-500.0,0.00054794,120]
[320870205,1711654240080,-598.36819225,0.00054794,120]
[320870207,1711654240090,-2440.95,0.00054794,120]
[320870209,1711654240099,-2440.95,0.00054794,120]
[320870211,1711654240108,-2440.95,0.00054794,120]
[320870213,1711654240117,-500.0,0.00054794,120]
[320870215,1711654240126,-2440.95,0.00054794,120]
[320870217,1711654240135,-500.0,0.00054794,120]
[320870218,1711654240144,-2440.95,0.00054794,120]
[320870219,1711654240153,-2440.95,0.00054794,120]
[320870220,1711654240162,-500.0,0.00054794,120]
[320870221,1711654240171,-500.0,0.00054794,120]
[320870222,1711654240180,-500.0,0.00054794,120]
[320870223,1711654240189,-500.0,0.00054794,120]
[320870224,1711654240198,-500.0,0.00054794,120]
[320870225,1711654240207,-500.0,0.00054794,21]
[320870226,1711654240217,-500.0,0.00054794,21]
[320870227,1711654240226,-500.0,0.00054794,120]
[320870228,1711654240236,-500.0,0.00054794,21]
[320870229,1711654240245,-501.94934298,0.00054794,120]
[320870230,1711654240254,-500.0,0.00054794,120]
[320870231,1711654240263,-500.0,0.00054794,120]
[320870232,1711654240271,-500.0,0.00054794,120]
[320870233,1711654240281,-500.0,0.00054794,120]
[320870234,1711654240291,-500.0,0.00054794,120]
[320870235,1711654240301,-500.0,0.00054794,120]
[320870236,1711654240310,-500.0,0.00054794,120]
[320870237,1711654240319,-500.0,0.00054794,120]
[320870238,1711654240328,-500.0,0.00054794,120]
[320870239,1711654240337,-573.5905054,0.00054794,120]
[320870240,1711654240347,-466.51962101,0.00054794,120]
[320870241,1711654240356,-500.0,0.00054794,120]
[320870242,1711654240365,-493.32600004,0.00054794,120]
[320870243,1711654240374,-229.65115844,0.00054794,120]
[320870244,1711654240384,-500.0,0.00054794,120]
[320870245,1711654240394,-442.98,0.00054794,120]
[320870246,1711654240403,-500.0,0.00054794,120]
[320870247,1711654240413,-1000.0,0.00054794,120]
[320870248,1711654240422,-500.0,0.00054794,120]
[320870249,1711654240431,-500.0,0.00054794,120]
[320870250,1711654240440,-644.24651359,0.00054794,120]
[320870251,1711654240450,-500.0,0.00054794,120]
[320870252,1711654240459,-500.0,0.00054794,120]
[320870253,1711654240468,-402.82958316,0.00054794,120]
[320870254,1711654240477,-500.0,0.00054794,120]
[320870255,1711654240487,-500.0,0.00054794,120]
[320870256,1711654240496,-1133.26,0.00054794,120]
[320870257,1711654240505,-1133.26,0.00054794,120]
[320870258,1711654240515,-1133.26,0.00054794,120]
[320870259,1711654240524,-500.0,0.00054794,120]
[320870260,1711654240533,-500.0,0.00054794,120]
[320870261,1711654240543,-500.0,0.00054794,120]
[320870262,1711654240552,-500.0,0.00054794,120]
[320870263,1711654240561,-500.0,0.00054794,120]
[320870264,1711654240570,-1000.0,0.00054794,2]
[320870265,1711654240580,-500.0,0.00054794,120]
[320870266,1711654240590,-500.0,0.00054794,120]
[320870267,1711654240599,-464.45953405,0.00054794,120]
[320870268,1711654240609,-500.0,0.00054794,120]
[320870269,1711654240618,-500.0,0.00054794,120]
[320870270,1711654240627,-500.0,0.00054794,120]
[320870271,1711654240636,-234.60226514,0.00054794,120]
[320870272,1711654240645,-500.0,0.00054794,120]
[320870273,1711654240654,-500.0,0.00054794,120]
[320870274,1711654240663,-500.0,0.00054794,120]
[320870275,1711654240672,-500.0,0.00054794,120]
[320870276,1711654240683,-500.0,0.00054794,120]
[320870277,1711654240693,-500.0,0.00054794,120]
[320870278,1711654240702,-500.0,0.00054794,120]
[320870279,1711654240711,-500.0,0.00054794,120]
[320870280,1711654240720,-500.0,0.00054794,120]
[320870281,1711654240729,-500.0,0.00054794,120]
[320870282,1711654240738,-500.0,0.00054794,120]
[320870283,1711654240747,-500.0,0.00054794,120]
[320870284,1711654240756,-578.43,0.00054794,120]
[320870285,1711654240766,-498.80047884,0.00054794,120]
[320870286,1711654240776,-1196.906082,0.00058937,120]
[320870287,1711654240785,-500.0,0.00059998,120]
[320870288,1711654240794,-520.06,0.00059998,120]
[320870289,1711654240803,-500.0,0.00059998,120]
[320870290,1711654240813,-1133.26,0.00059998,120]
[320870291,1711654240823,-500.0,0.00059999,120]
[320870292,1711654240833,-500.0,0.00059999,120]
[320870293,1711654240843,-500.0,0.00059999,120]
[320870294,1711654240853,-500.0,0.00059999,120]
[320870295,1711654240862,-157.10442829,0.00059999,120]
[320870296,1711654240871,-434.55264586,0.00059999,120]
[320870297,1711654240880,-500.0,0.00059999,120]
[320870298,1711654240889,-500.0,0.00059999,120]
[320870299,1711654240899,-500.0,0.00059999,120]
[320870300,1711654240909,-602.13,0.00059999,120]
[320870301,1711654240918,-602.13,0.00059999,120]
[320870302,1711654240928,-548.58,0.00059999,90]
[320870303,1711654240939,-548.58,0.00059999,90]
[320870304,1711654240948,-2440.95,0.00059999,120]
[320870305,1711654240958,-500.0,0.00059999,21]
[320870306,1711654240967,-500.0,0.00059999,21]
[320870307,1711654240976,-502.42469842,0.00059999,120]
[320870308,1711654240986,-1133.26,0.00059999,120]
[320870309,1711654240995,-51405.53693456,0.0006,2]
[320870310,1711654241004,-813.72268831,0.0006,7]
[320870311,1711654241013,-176.50964468,0.0006441,12]
[320870312,1711654241022,-1196.906082,0.00066304,120]
[320870313,1711654241031,-2440.95,0.00067999,120]
[320870314,1711654241040,-903.85613351,0.00068394,7]
[320870315,1711654241050,-4053.20305563,0.0006849,7]
[320870316,1711654241058,-454.4494058,0.0006849,7]
[320870317,1711654241068,-500.0,0.00068492,120]
[320870318,1711654241077,-500.0,0.00068492,120]
[320870319,1711654241086,-602.13,0.00068492,120]
[320870320,1711654241095,-1133.26,0.00068492,120]
[320870321,1711654241104,-433.03219239,0.00068493,120]
[320870322,1711654241113,-433.9653263,0.00068493,120]
[320870323,1711654241122,-25970.0267687,0.00068493,30]
[320870324,1711654241131,-2440.95,0.00068898,120]
[320870325,1711654241140,-371.380205,0.00069192,30]
[320870326,1711654241149,-500.0,0.00069998,120]
[320870327,1711654241159,-500.0,0.00069998,120]
[320870328,1711654241167,-500.0,0.00069998,120]
[320870329,1711654241176,-203.91,0.00069998,120]
[320870330,1711654241186,-235.56,0.00069998,120]
[320870331,1711654241195,-219.07,0.00069998,120]
[320870332,1711654241204,-496.08196816,0.00069998,7]
[320870333,1711654241213,-500.0,0.00069998,120]
[320870334,1711654241222,-112.75358802,0.00069998,120]
[320870335,1711654241280,-387.24641198,0.00069998,120]
[320870336,1711654241290,-500.0,0.00069998,120]
[320870337,1711654241299,-500.0,0.00069998,120]
[320870338,1711654241389,-500.0,0.00069998,120]
[320870339,1711654241398,-500.0,0.00069998,120]
[320870340,1711654241408,-500.0,0.00069998,120]
[320870341,1711654241418,-500.0,0.00069998,120]
[320870342,1711654241427,-500.0,0.00069998,120]
[320870343,1711654241437,-501.97136362,0.00069998,120]
[320870344,1711654241446,-500.0,0.00069998,120]
[320870345,1711654241456,-500.0,0.00069998,120]
[320870346,1711654241466,-381.02069424,0.00069998,120]
[320870347,1711654241530,-118.97930576,0.00069998,120]
[320870348,1711654241541,-1000.0,0.00069998,120]
[320870349,1711654241549,-500.0,0.00069998,120]
[320870350,1711654241558,-500.0,0.00069998,120]
[320870351,1711654241568,-500.0,0.00069998,120]
[320870352,1711654241577,-500.0,0.00069998,120]
[320870353,1711654241587,-500.0,0.00069998,120]
[320870354,1711654241596,-500.0,0.00069998,120]
[320870355,1711654241605,-496.31275337,0.00069998,120]
[320870356,1711654241615,-500.0,0.00069998,120]
[320870357,1711654241625,-500.0,0.00069998,120]
[320870358,1711654241634,-500.0,0.00069998,120]
[320870359,1711654241643,-339.09,0.00069998,120]
[320870360,1711654241653,-500.0,0.00069998,120]
[320870361,1711654241662,-602.13,0.00069999,120]
[320870362,1711654241671,-4308.48799799,0.0007,120]
[320870363,1711654241681,-151.0,0.0007,120]
[320870364,1711654241692,-1000.0,0.00070987,2]
[320870365,1711654241701,-4307.19868765,0.000711,120]
[320870375,1711654242041,-272.46061474,0.000711,120]
[320870376,1711654242097,-678.48836769,0.000711,120]
[320870377,1711654242106,-1183.46472904,0.00071137,7]
[320870378,1711654242116,-151.111348,0.00071137,120]
[320870379,1711654242125,-151.0,0.00071137,120]
[320870380,1711654242134,-500.0,0.0007123,120]
[320870381,1711654242143,-500.0,0.0007123,120]
[320870382,1711654242153,-548.58,0.0007123,90]
[320870383,1711654242162,-516.3,0.0007123,21]
[320870384,1711654242171,-2440.95,0.00071231,120]
[320870385,1711654242180,-385.1,0.00071232,120]
[320870386,1711654242190,-385.1,0.00071232,120]
[320870387,1711654242200,-385.1,0.00071232,120]
[320870388,1711654242210,-385.1,0.00071232,120]
[320870389,1711654242219,-385.1,0.00071232,120]
[320870390,1711654242230,-385.1,0.00071232,120]
[320870391,1711654242240,-500.0,0.00071505,120]
[320870392,1711654242250,-500.0,0.00071505,120]
[320870393,1711654242261,-1133.26,0.00071505,120]
[320870394,1711654242271,-2000.0,0.0007178,120]
[320870395,1711654242281,-485.0,0.000719,60]
[320870396,1711654242293,-1000.0,0.00071987,2]
[320870397,1711654242301,-602.13,0.00071992,120]
[320870398,1711654242312,-216.02918232,0.00071994,7]
[320870399,1711654242321,-593.77021929,0.00071994,7]
[320870400,1711654242330,-173.61474984,0.00071994,7]
[320870401,1711654242340,-1322.81670346,0.00071994,7]
[320870402,1711654242349,-500.0,0.00071995,120]
[320870403,1711654242359,-500.0,0.00071995,120]
[320870404,1711654242368,-500.0,0.00071995,120]
[320870405,1711654242379,-288.28327721,0.00071995,120]
[320870406,1711654242392,-211.71672279,0.00071995,120]
[320870407,1711654242401,-452.75,0.00071995,120]
[320870408,1711654242410,-500.0,0.00071995,120]
[320870409,1711654242420,-500.0,0.00071995,120]
[320870410,1711654242430,-500.0,0.00071995,120]
[320870411,1711654242439,-500.0,0.00071995,120]
[320870412,1711654242449,-500.0,0.00071995,120]
[320870413,1711654242458,-548.58,0.00071995,90]
[320870414,1711654242468,-500.0,0.00071995,120]
[320870415,1711654242477,-385.1,0.00071995,120]
[320870416,1711654242487,-500.0,0.00071995,120]
[320870417,1711654242496,-500.0,0.00071995,120]
[320870418,1711654242505,-607.70830094,0.00071995,120]
[320870419,1711654242515,-285.69417683,0.00071995,120]
[320870420,1711654242524,-522.83607809,0.00071995,120]
[320870421,1711654242533,-229.16,0.00071995,120]
[320870422,1711654242545,-500.0,0.00071995,120]
[320870423,1711654242554,-500.0,0.00071995,120]
[320870424,1711654242564,-500.0,0.00071995,120]
[320870425,1711654242573,-500.0,0.00071995,120]
[320870426,1711654242582,-1133.26,0.00071995,120]
[320870427,1711654242596,-500.0,0.00071995,120]
[320870428,1711654242656,-500.0,0.00071995,120]
[320870429,1711654242666,-500.0,0.00071995,120]
[320870430,1711654242676,-10063.46382644,0.00071996,7]
[320870431,1711654242691,-5612.27022103,0.00071996,7]
[320870433,1711654242804,-194.96524265,0.00071996,7]
[320870478,1711654243371,-21837.39510194,0.00071996,7]
[320870480,1711654243381,-151.0,0.00071996,120]
[320870482,1711654243391,-198.2718,0.00071996,120]
[320870484,1711654243401,-198.2718,0.00071996,120]
[320870486,1711654243410,-151.0,0.00071996,120]
[320870488,1711654243419,-207.336002,0.00071996,120]
[320870490,1711654243428,-151.0,0.00071996,120]
[320870492,1711654243437,-2440.95,0.00071996,120]
[320870494,1711654243447,-285.09731647,0.00071999,7]
[320870496,1711654243456,-275.21764506,0.00071999,7]
[320870498,1711654243465,-602.13,0.00071999,120]
[320870499,1711654243474,-2440.95,0.00071999,120]
[320870501,1711654243483,-602.13,0.00072131,120]
[320870503,1711654243493,-5080.34,0.00072132,120]
[320870505,1711654243502,-500.0,0.00072327,120]
[320870507,1711654243511,-150.0,0.000724,120]
[320870509,1711654243520,-2440.95,0.00072899,120]
[320870511,1711654243530,-500.0,0.000729,120]
[320870513,1711654243539,-913.81576557,0.0007291,30]
[320870515,1711654243549,-150.95471359,0.00072968,2]
[320870517,1711654243558,-1000.0,0.00072987,3]
[320870519,1711654243568,-1000.0,0.00072999,120]
[320870521,1711654243577,-500.0,0.00072999,120]
[320870523,1711654243586,-500.0,0.00072999,120]
[320870525,1711654243595,-500.0,0.00072999,120]
[320870527,1711654243605,-500.0,0.00072999,120]
[320870529,1711654243614,-548.58,0.00072999,90]
[320870531,1711654243623,-385.1,0.00072999,120]
[320870534,1711654243633,-1133.26,0.00072999,120]
[320870535,1711654243642,-632.56,0.00072999,120]
[320870537,1711654243651,-19358.53545757,0.00073,120]
[320870539,1711654243660,-7560.126,0.00073,120]
[320870541,1711654243670,-1152.77210967,0.00073,7]
[320870543,1711654243682,-155.0,0.0007303,86]
[320870545,1711654243691,-10544.17509704,0.000738,4]
[320870547,1711654243700,-602.13,0.00073899,120]
[320870549,1711654243710,-500.0,0.000739,120]
[320870551,1711654243721,-1127.03206429,0.0007397,7]
[320870554,1711654243730,-1681.42693913,0.0007397,120]
[320870837,1711654246512,-686.93957908,0.00069997,2]
[320870839,1711654246521,-1136.24917803,0.0007397,120]
[320870841,1711654246529,-151.0,0.0007397,120]
[320870843,1711654246539,-198.2718,0.0007397,120]
[320870845,1711654246548,-198.2718,0.0007397,120]
[320870847,1711654246557,-151.0,0.0007397,120]
[320870849,1711654246566,-151.0,0.0007397,120]
[320870851,1711654246575,-1000.0,0.00073987,5]
[320870852,1711654246585,-500.0,0.00073999,120]
[320870854,1711654246594,-500.0,0.00073999,120]
[320870856,1711654246603,-500.0,0.00073999,120]
[320870858,1711654246611,-500.0,0.00073999,120]
[320870860,1711654246620,-548.58,0.00073999,90]
[320870862,1711654246629,-2440.95,0.00073999,120]
[320870864,1711654246638,-385.1,0.00073999,120]
[320870866,1711654246647,-1133.26,0.00073999,120]
[320870868,1711654246656,-150.0,0.00073999,120]
[320870870,1711654246665,-16000.0,0.00074,120]
[320870872,1711654246676,-648.77853893,0.00074,120]
[320870874,1711654246686,-583.0,0.000746,7]
[320870876,1711654246696,-300.0,0.00074821,120]
[320870878,1711654246707,-500.0,0.000749,120]
[320870880,1711654246715,-500.0,0.000749,60]
[320870882,1711654246725,-2743.781821,0.000749,120]
[320870883,1711654246734,-500.0,0.0007497,7]
[320870885,1711654246743,-268.75897952,0.00074994,7]
[320870887,1711654246752,-344.57862135,0.00074994,2]
[320870889,1711654246763,-155.5874473,0.00074994,7]
[320870891,1711654246772,-1914.67146911,0.00074994,7]
[320870893,1711654246781,-306.30701489,0.00074994,7]
[320870895,1711654246790,-404.77707708,0.00074994,7]
[320870897,1711654246799,-500.82920371,0.00074994,7]
[320870899,1711654246809,-251.8271845,0.00074994,7]
[320870901,1711654246818,-205.41840338,0.00074994,7]
[320870902,1711654246828,-366.43739482,0.00074994,7]
[320870904,1711654246838,-177.7938113,0.00074994,7]
[320870906,1711654246847,-218.85106251,0.00074994,7]
[320870908,1711654246856,-201.13790083,0.00074994,7]
[320870910,1711654246865,-1675.67518012,0.00074994,120]
[320870912,1711654246874,-253.48220235,0.00074994,7]
[320870914,1711654246883,-191.90356439,0.00074994,7]
[320870916,1711654246893,-478.46483895,0.00074994,7]
[320870918,1711654246902,-155.07132863,0.00074994,7]
[320870920,1711654246914,-179.29073254,0.00074994,7]
[320870922,1711654246923,-312.51706201,0.00074994,7]
[320870924,1711654246933,-208.73581983,0.00074994,7]
[320870926,1711654246942,-309.78313322,0.00074994,7]
[320870928,1711654246952,-301.92875966,0.00074994,7]
[320870930,1711654246962,-312.42209873,0.00074995,120]
[320870932,1711654246971,-209.49222375,0.00074995,2]
[320870934,1711654246980,-2231.39243499,0.00074995,120]
[320870937,1711654246989,-779.72077743,0.00074995,7]
[320870940,1711654247011,-156.2223788,0.00074995,7]
[320870942,1711654247021,-1562.50606045,0.00074995,7]
[320870943,1711654247030,-155.07405345,0.00074995,2]
[320870945,1711654247039,-603.12853459,0.00074995,7]
[320870947,1711654247049,-198.28756027,0.00074995,7]
[320870949,1711654247059,-155.50531977,0.00074995,7]
[320870951,1711654247070,-470.70840451,0.00074995,7]
[320870953,1711654247079,-1920.29570701,0.00074995,7]
[320870955,1711654247089,-500.0,0.00074995,120]
[320870957,1711654247098,-307.60254536,0.00074997,7]
[320870959,1711654247108,-500.0,0.00074997,120]
[320870961,1711654247117,-500.0,0.00074997,120]
[320870963,1711654247126,-151.0,0.00074997,120]
[320870965,1711654247135,-500.0,0.00074997,120]
[320870967,1711654247144,-602.13,0.00074997,120]
[320870969,1711654247154,-548.58,0.00074997,90]
[320870971,1711654247163,-385.1,0.00074997,120]
[320870973,1711654247172,-1133.26,0.00074997,120]
[320870985,1711654247294,-198.2718,0.00074998,120]
[320870987,1711654247304,-198.2718,0.00074998,120]
[320870989,1711654247313,-151.0,0.00074998,120]
[320870991,1711654247322,-500.0,0.00074998,120]
[320870992,1711654247332,-500.0,0.00074998,120]
[320870994,1711654247342,-500.0,0.00074998,120]
[320870996,1711654247350,-602.13,0.00074998,120]
[320870998,1711654247360,-548.58,0.00074998,90]
[320871000,1711654247369,-2440.95,0.00074998,120]
[320871002,1711654247378,-2440.95,0.00074998,120]
[320871004,1711654247387,-385.1,0.00074998,120]
[320871006,1711654247396,-1133.26,0.00074998,120]
[320871008,1711654247406,-150.0,0.00074999,120]
[320871010,1711654247415,-1000.0,0.00074999,120]
[320871012,1711654247424,-198.2718,0.00074999,120]
[320871013,1711654247433,-198.2718,0.00074999,120]
[320871015,1711654247442,-151.0,0.00074999,120]
[320871017,1711654247451,-500.0,0.00074999,120]
[320871019,1711654247460,-500.0,0.00074999,120]
[320871021,1711654247470,-263.1,0.00074999,120]
[320871023,1711654247479,-500.0,0.00074999,120]
[320871025,1711654247488,-500.0,0.00074999,120]
[320871027,1711654247497,-500.0,0.00074999,120]
[320871029,1711654247506,-500.0,0.00074999,120]
[320871031,1711654247516,-606.85601093,0.00074999,120]
[320871033,1711654247525,-151.0,0.00074999,120]
[320871035,1711654247534,-500.0,0.00074999,120]
[320871036,1711654247544,-500.0,0.00074999,120]
[320871038,1711654247553,-500.0,0.00074999,120]
[320871040,1711654247571,-500.0,0.00074999,120]
[320871042,1711654247589,-500.0,0.00074999,120]
[320871044,1711654247598,-500.0,0.00074999,120]
[320871046,1711654247607,-500.0,0.00074999,120]
[320871048,1711654247617,-500.0,0.00074999,120]
[320871050,1711654247626,-500.0,0.00074999,120]
[320871052,1711654247636,-500.0,0.00074999,120]
[320871054,1711654247645,-500.0,0.00074999,120]
[320871056,1711654247655,-416.05,0.00074999,120]
[320871058,1711654247666,-602.13,0.00074999,120]
[320871060,1711654247675,-602.13,0.00074999,120]
[320871062,1711654247685,-602.13,0.00074999,120]
[320871064,1711654247696,-602.13,0.00074999,120]
[320871066,1711654247705,-602.13,0.00074999,120]
[320871067,1711654247713,-602.13,0.00074999,120]
[320871069,1711654247722,-602.13,0.00074999,120]